{"text_format":"1","workbook":"xlsx","n_sheets":2,"sheets":["FICHA DEL POSTULANTE","Validación de datos"],"not_rendered":{"charts":0,"images":1,"macros":1,"external_links":0,"defined_names":1,"comments":1,"pivot_tables":0},"unopened":[],"bounds":{"document_bytes":16777216,"sheet_cells":100000,"rows_first":2000,"rows_last":500,"rows_between":2000,"halvings":0,"cell_chars":16384,"cell_head_chars":4096},"cells_cut":0,"cells_raw":0,"read":"whole","date_system":"1900"}

{"sheet":"FICHA DEL POSTULANTE","index":0,"n_rows":70,"n_cols":71,"rows_kept":70,"cut":false,"hidden":false,"merged":[[8,1,8,2],[28,6,28,8],[68,2,68,7],[11,6,11,8],[15,6,15,8],[13,6,13,8],[40,1,40,8],[32,6,32,8],[34,6,34,8],[46,4,46,5],[47,4,47,5],[54,2,54,3],[54,4,54,8],[42,4,42,5],[42,2,42,3],[48,4,48,5],[4,7,5,9],[36,6,36,8],[38,6,38,8],[6,1,6,8],[7,1,7,8],[16,6,16,7],[17,6,17,7],[16,1,16,2],[9,1,9,3],[18,6,18,8],[20,6,20,8],[22,6,22,8],[24,6,24,8],[17,1,17,5],[26,6,26,8],[30,6,30,8],[71,0,71,9],[62,6,62,8],[60,6,60,8],[65,2,65,7],[56,2,56,3],[56,4,56,8],[58,2,58,3],[58,4,58,8],[69,1,69,8],[49,4,49,5],[50,4,50,5],[43,2,43,3],[44,2,44,3],[45,2,45,3],[46,2,46,3],[47,2,47,3],[48,2,48,3],[49,2,49,3],[50,2,50,3],[43,4,43,5],[44,4,44,5],[45,4,45,5]]}
[null,null,null,null,null,null,null,null,null,null,null,"N°","REPRESENTANTE, INSTITUCIÓN O EMPRESA","MODALIDAD","RUC (sólo empresa)","PROVINCIA","NOMBRES DEL REPRESENTANTE","APELLIDOS DEL REPRESENTANTE","NACIONALIDAD DEL FUTURO SOLICITANTE","DNI/C.E.","TELÉFONO FIJO","TELÉFONO CELULAR","CORREO 1","CORREO 2","NOMBRES INVENTOR 1","APELLIDOS INVENTOR 1","DNI/C.E. INVENTOR 1","SEXO INVENTOR 1","EDAD INVENTOR 1","NOMBRES INVENTOR 2","APELLIDOS INVENTOR 2","DNI/C.E. INVENTOR 2","SEXO INVENTOR 2","EDAD INVENTOR 2","NOMBRES INVENTOR 3","APELLIDOS INVENTOR 3","DNI/C.E. INVENTOR 3","SEXO INVENTOR 3","EDAD INVENTOR 3","NOMBRES INVENTOR 4","APELLIDOS INVENTOR 4","DNI/C.E. INVENTOR 4","SEXO INVENTOR 4","EDAD INVENTOR 4","NOMBRES INVENTOR 5","APELLIDOS INVENTOR 5","DNI/C.E. INVENTOR 5","SEXO INVENTOR 5","EDAD INVENTOR 5","NOMBRES INVENTOR 6","APELLIDOS INVENTOR 6","DNI/C.E. INVENTOR 6","SEXO INVENTOR 6","EDAD INVENTOR 6","NOMBRES INVENTOR 7","APELLIDOS INVENTOR 7","DNI/C.E. INVENTOR 7","SEXO INVENTOR 7","EDAD INVENTOR 7","NOMBRES INVENTOR 8","APELLIDOS INVENTOR 8","DNI/C.E. INVENTOR 8","SEXO INVENTOR 8","EDAD INVENTOR 8","TÍTULO DEL INVENTO","SECTOR TECNOLÓGICO ","GRADO DE ELABORACIÓN","DIVULGACIÓN","FECHA DE DIVULGACIÓN","PARTICIPACIÓN DEL CONCURSO","AUTORIZACIÓN DE INFORMACIÓN DE CONTACTO Y DE TITULO Y RESUMEN"]
[null,null,null,null,null,null,null,null,null,null,null,null,{"$f":"IF(OR(M3=FALSE,M3=0),\"-\",M3)","v":"-"},{"$f":"IF(OR(N3=FALSE,N3=0),\"-\",N3)","v":"Inventor Independiente"},"-","-","-","-","-","-","-","-","-","-","-","-","-","-","-","-","-","-","-","-","-","-","-","-","-","-","-","-","-","-","-","-","-","-","-","-","-","-","-","-","-","-","-","-","-","-","-","-","-","-","-","-","-","-","-","-","-"]
[null,null,null,null,null,null,null,null,null,null,null,null,{"$f":"IF(G12<>0,G12,IF(G14<>0,G14,IF(G16<>0,G16)))","v":false},{"$f":"IF(G12<>0,\"Centros Académicos y de Investigación\",IF(G14<>0, \"Empresa\",\"Inventor Independiente\"))","v":"Inventor Independiente"},{"$f":"G16","v":0},{"$f":"G35","v":0},{"$f":"G19","v":0},{"$f":"G21","v":0},{"$f":"G23","v":0},{"$f":"G25","v":0},{"$f":"G27","v":0},{"$f":"G29","v":0},{"$f":"G31","v":0},{"$f":"G33","v":0},{"$f":"C44","v":0},{"$f":"E44","v":0},{"$f":"G44","v":0},{"$f":"H44","v":0},{"$f":"I44","v":0},{"$f":"C45","v":0},{"$f":"E45","v":0},{"$f":"G45","v":0},{"$f":"H45","v":0},{"$f":"I45","v":0},{"$f":"C46","v":0},{"$f":"E46","v":0},{"$f":"G46","v":0},{"$f":"H46","v":0},{"$f":"I46","v":0},{"$f":"C47","v":0},{"$f":"E47","v":0},{"$f":"G47","v":0},{"$f":"H47","v":0},{"$f":"I47","v":0},{"$f":"C48","v":0},{"$f":"E48","v":0},{"$f":"G48","v":0},{"$f":"H48","v":0},{"$f":"I48","v":0},{"$f":"C49","v":0},{"$f":"E49","v":0},{"$f":"G49","v":0},{"$f":"H49","v":0},{"$f":"I49","v":0},{"$f":"C50","v":0},{"$f":"E50","v":0},{"$f":"G50","v":0},{"$f":"H50","v":0},{"$f":"I50","v":0},{"$f":"C51","v":0},{"$f":"E51","v":0},{"$f":"G51","v":0},{"$f":"H51","v":0},{"$f":"I51","v":0},{"$f":"E55","v":0},{"$f":"E57","v":0},{"$f":"E59","v":0},{"$f":"G61","v":0},{"$f":"G63","v":0},{"$f":"I69","v":0},{"$f":"I66","v":0}]
[]
[]
[]
[null,"FICHA DE POSTULANTE"]
[null,"Modalidad Centro Académico y de Investigación"]
[]
[null,"Tipo de postulante"]
[]
[null,null,"Nombre de la Institución"]
[]
[null,null,"Nombre de la empresa"]
[]
[null,null,"R.U.C. de la empresa"]
[]
[null,"Datos del representante ante el programa"]
[null,null,"Nombres"]
[]
[null,null,"Apellidos"]
[]
[null,null,"Nacionalidad"]
[]
[null,null,"DNI ó C.E."]
[]
[null,null,"Teléfono fijo"]
[]
[null,null,"Teléfono celular"]
[]
[null,null,"Correo electronico"]
[]
[null,null,"Correo electronico alternativo"]
[]
[null,null,"Región"]
[]
[null,null,"Ocupación"]
[]
[null,null,"Centro de labores"]
[]
[null,"Datos de los inventores (Liste la información de todos los inventores)"]
[]
[null,null,"NOMBRES",null,"APELLIDOS",null,"DNI/C.E.","SEXO","EDAD"]
[]
[]
[]
[]
[]
[]
[]
[]
[]
[null,"Información del invento"]
[]
[null,null,"Título de la invención"]
[]
[null,null,"Sector Tecnológico"]
[]
[null,null,"Grado de Madurez de la Tecnología (TLR)"]
[]
[null,null,"¿Se ha divulgado el invento?"]
[]
[null,null,null,"Fecha de divulgación"]
[]
[null,"Autorización de información comercial.",null,null,null,null,null,null,"Elegir SI/NO"]
[null,null,"Autorizo al Indecopi a brindar mi información de contacto a cualquier persona (natural o jurídica) que esté interesada en la coordinación, desarrollo, promoción y/o comercialización alrededor de la invención que he desarrollado (Ejemplo: incubadoras de empresas, periodistas, emprendedores, empresarios, inversionistas, instituciones públicas o privadas, entre otros)."]
[]
[null,"Participación en el Concurso Nacional de Invenciones 2020",null,null,null,null,null,null,"Elegir SI/NO"]
[null,null,"En el caso mi invención o diseño sea evaluado de manera positiva, me comprometo a participar de la etapa de exhibición de inventos y diseño a relizarse en Noviembre del 2020 para competir por los premios que otorga el evento."]
[null,"Nota: Debe completar y enviar esta ficha en su formato original para que se pueda extraer los datos consignados de manera satisfactoria. No será considerado como válido su envío en otro formato."]

{"sheet":"Validación de datos","index":1,"n_rows":10,"n_cols":1,"rows_kept":10,"cut":false,"hidden":true,"merged":[]}
["TLR"]
["TLR 1: Idea o investigación básica"]
["TLR 2: Formulación de la tecnología"]
["TLR 3: Investigación aplicada o Prueba de concepto"]
["TLR 4: Desarrollo a pequeña escala (Laboratorio o Taller)"]
["TLR 5: Desarrollo a escala real"]
["TLR 6: Sistema/prototipo validado en entorno simulado"]
["TLR 7: Sistema/prototipo validado en entorno real"]
["TLR 8: Primer sistema/prototipo comercial"]
["TLR 9: Aplicación comercial"]